fUSD/lending_fUSD_20241121
["ID","MTS","AMOUNT","RATE_DAILY","PERIOD"]
[342843532,1732176657606,-2934.35737774,0.00043431,15]
[342843533,1732176657615,-4228.4391859,0.0004347,2]
[342843534,1732176657624,-867.007991,0.0004347,2]
[342843535,1732176657633,-13526.84543781,0.000435,2]
[342843536,1732176657642,-10448.5553,0.000435,2]
[342843537,1732176657652,-1200.0,0.000435,15]
[342843538,1732176657661,-500.0,0.00043521,18]
[342843539,1732176657670,-500.0,0.00043521,18]
[342843540,1732176657680,-500.0,0.00043521,18]
[342843541,1732176657691,-500.0,0.00043521,18]
[342843542,1732176657700,-2535.35,0.00043521,18]
[342843543,1732176657710,-2701.22,0.00043521,18]
[342843544,1732176657719,-738.61,0.00043521,18]
[342843545,1732176657729,-666.63,0.00043521,18]
[342843546,1732176657738,-793.63,0.00043521,18]
[342843547,1732176657747,-1051.29,0.00043521,18]
[342843548,1732176657756,-2633.56,0.00043521,18]
[342843549,1732176657765,-500.0,0.00043521,18]
[342843550,1732176657775,-1691.64,0.00043521,18]
[342843551,1732176657785,-1991.21,0.00043521,18]
[342843552,1732176657795,-500.0,0.00043521,18]
[342843553,1732176657804,-1801.46,0.00043521,18]
[342843554,1732176657814,-553.23,0.00043521,18]
[342843555,1732176657824,-930.87,0.00043521,18]
[342843556,1732176657834,-500.0,0.00043521,18]
[342843557,1732176657843,-1614.18,0.00043521,18]
[342843558,1732176657852,-1180.2,0.00043521,18]
[342843559,1732176657862,-771.69,0.00043521,18]
[342843560,1732176657871,-1368.87,0.00043521,18]
[342843561,1732176657881,-559.19,0.00043521,18]
[342843562,1732176657890,-500.0,0.00043521,18]
[342843563,1732176657899,-1693.04,0.00043521,18]
[342843564,1732176657909,-500.0,0.00043521,18]
[342843565,1732176657918,-501.37,0.00043521,18]
[342843566,1732176657928,-786.7,0.00043521,18]
[342843567,1732176657939,-1234.03,0.00043521,18]
[342843568,1732176657951,-742.52,0.00043521,18]
[342843569,1732176657962,-1230.89,0.00043521,18]
[342843570,1732176657971,-810.59,0.00043521,18]
[342843571,1732176657980,-2134.16,0.00043521,18]
[342843572,1732176657990,-970.99,0.00043521,18]
[342843573,1732176658000,-500.0,0.00043521,18]
[342843574,1732176658010,-500.0,0.00043521,18]
[342843575,1732176658019,-3846.69,0.00043521,18]
[342843576,1732176658032,-500.0,0.00043521,18]
[342843577,1732176658042,-1386.33,0.00043521,18]
[342843578,1732176658051,-2323.29,0.00043521,18]
[342843579,1732176658065,-500.0,0.00043521,18]
[342843580,1732176658074,-500.0,0.00043521,18]
[342843581,1732176658084,-500.0,0.00043521,18]
[342843582,1732176658094,-3508.91,0.00043521,18]
[342843583,1732176658103,-1372.58,0.00043521,18]
[342843584,1732176658112,-866.98,0.00043521,18]
[342843585,1732176658121,-500.0,0.00043521,18]
[342843586,1732176658131,-1806.44,0.00043521,18]
[342843587,1732176658140,-500.0,0.00043521,18]
[342843588,1732176658149,-500.0,0.00043521,18]
[342843589,1732176658159,-500.0,0.00043521,18]
[342843590,1732176658168,-531.75,0.00043521,18]
[342843591,1732176658178,-743.43,0.00043521,18]
[342843592,1732176658187,-1917.33,0.00043521,18]
[342843593,1732176658196,-1280.87,0.00043521,18]
[342843594,1732176658206,-856.34,0.00043521,18]
[342843595,1732176658216,-2512.67,0.00043521,18]
[342843596,1732176658226,-500.0,0.00043521,18]
[342843597,1732176658236,-500.0,0.00043521,18]
[342843598,1732176658246,-4218.09,0.00043521,18]
[342843599,1732176658256,-547.21573962,0.00043521,18]
[342843600,1732176658266,-3316.6,0.00043521,18]
[342843601,1732176658277,-500.0,0.00043521,18]
[342843602,1732176658287,-518.8,0.00043521,18]
[342843603,1732176658297,-1068.4,0.00043521,18]
[342843604,1732176658307,-500.0,0.00043521,18]
[342843605,1732176658317,-1185.85,0.00043521,18]
[342843606,1732176658327,-1666.62,0.00043521,18]
[342843607,1732176658337,-1189.25,0.00043521,18]
[342843608,1732176658348,-500.0,0.00043521,18]
[342843609,1732176658357,-500.0,0.00043521,18]
[342843610,1732176658367,-500.0,0.00043521,18]
[342843611,1732176658377,-1514.38,0.00043521,18]
[342843612,1732176658386,-1413.9,0.00043521,18]
[342843613,1732176658395,-500.0,0.00043521,18]
[342843614,1732176658405,-835.83,0.00043521,18]
[342843615,1732176658416,-500.0,0.00043521,18]
[342843616,1732176658425,-1130.33,0.00043521,18]
[342843617,1732176658434,-736.2,0.00043521,18]
[342843618,1732176658443,-167.85457185,0.00043521,18]
[342843619,1732176658453,-881.69,0.00043521,18]
[342843620,1732176658463,-2905.88,0.00043521,18]
[342843621,1732176658473,-553.96,0.00043521,18]
[342843622,1732176658482,-500.0,0.00043521,18]
[342843623,1732176658491,-2388.19,0.00043521,18]
[342843624,1732176658501,-1185.08,0.00043521,18]
[342843625,1732176658510,-500.0,0.00043521,18]
[342843626,1732176658520,-1227.28,0.00043521,18]
[342843627,1732176658531,-500.0,0.00043521,18]
[342843628,1732176658541,-500.0,0.00043521,18]
[342843629,1732176658550,-500.0,0.00043521,18]
[342843630,1732176658559,-3322.41,0.00043521,18]
[342843631,1732176658569,-1058.97,0.00043521,18]
[342843632,1732176658579,-335.285549,0.00043544,14]
[342843633,1732176658588,-335.285549,0.00043544,14]
[342843634,1732176658597,-526.18928334,0.00043547,16]
[342843635,1732176658607,-500.0,0.00043547,18]
[342843636,1732176658616,-500.0,0.00043547,18]
[342843637,1732176658625,-929.68,0.00043547,18]
[342843638,1732176658634,-500.0,0.00043547,18]
[342843639,1732176658643,-500.0,0.00043547,18]
[342843640,1732176658653,-500.0,0.00043547,18]
[342843641,1732176658662,-500.0,0.00043547,18]
[342843642,1732176658672,-500.0,0.00043547,18]
[342843643,1732176658681,-500.0,0.00043547,18]
[342843644,1732176658690,-1198.44,0.00043547,18]
[342843645,1732176658699,-500.0,0.00043547,18]
[342843646,1732176658708,-500.0,0.00043547,18]
[342843647,1732176658718,-500.0,0.00043547,18]
[342843648,1732176658727,-500.0,0.00043547,18]
[342843649,1732176658736,-1497.0,0.00043547,18]
[342843650,1732176658746,-500.0,0.00043547,18]
[342843651,1732176658755,-500.0,0.00043547,18]
[342843652,1732176658764,-500.0,0.00043547,18]
[342843653,1732176658775,-500.0,0.00043547,18]
[342843654,1732176658784,-1553.39,0.00043547,18]
[342843655,1732176658793,-564.42202256,0.00043547,18]
[342843656,1732176658802,-1417.17,0.00043547,18]
[342843657,1732176658811,-617.79,0.00043547,18]
[342843658,1732176658821,-2406.98,0.00043547,18]
[342843659,1732176658830,-621.38,0.00043547,18]
[342843660,1732176658840,-500.0,0.00043547,18]
[342843661,1732176658850,-500.0,0.00043547,18]
[342843662,1732176658859,-500.0,0.00043547,18]
[342843663,1732176658868,-500.0,0.00043547,18]
[342843664,1732176658878,-1620.51,0.00043547,18]
[342843665,1732176658888,-5098.83,0.00043547,18]
[342843666,1732176658897,-500.0,0.00043561,18]
[342843667,1732176658906,-1156.4,0.00043561,18]
[342843668,1732176658916,-500.0,0.00043561,18]
[342843669,1732176658925,-1110.1,0.00043561,18]
[342843670,1732176658935,-735.8,0.00043561,18]
[342843671,1732176658946,-1424.8,0.00043561,18]
[342843672,1732176658959,-954.83,0.00043561,18]
[342843673,1732176658968,-1233.17,0.00043561,18]
[342843674,1732176658977,-743.64,0.00043561,18]
[342843675,1732176658986,-945.64,0.00043561,18]
[342843676,1732176658996,-620.35,0.00043561,18]
[342843677,1732176659006,-1020.25,0.00043561,18]
[342843678,1732176659016,-718.31,0.00043561,18]
[342843679,1732176659029,-963.26,0.00043561,18]
[342843680,1732176659039,-500.0,0.00043561,18]
[342843681,1732176659048,-1720.92,0.00043561,18]
[342843682,1732176659057,-709.96,0.00043561,18]
[342843683,1732176659066,-1681.51,0.00043561,18]
[342843684,1732176659075,-718.13,0.00043561,18]
[342843685,1732176659084,-589.21,0.00043561,18]
[342843686,1732176659093,-1498.97,0.00043561,18]
[342843687,1732176659103,-500.0,0.00043561,18]
[342843688,1732176659112,-1277.09,0.00043561,18]
[342843689,1732176659122,-1595.3,0.00043561,18]
[342843690,1732176659131,-1010.93,0.00043561,18]
[342843691,1732176659141,-537.11,0.00043561,18]
[342843692,1732176659151,-675.03,0.00043561,18]
[342843693,1732176659160,-500.0,0.00043561,18]
[342843694,1732176659169,-808.57,0.00043561,18]
[342843695,1732176659178,-500.0,0.00043561,18]
[342843696,1732176659188,-582.82,0.00043561,18]
[342843697,1732176659197,-500.0,0.00043561,18]
[342843698,1732176659207,-500.0,0.00043561,18]
[342843699,1732176659216,-1919.54,0.00043561,18]
[342843700,1732176659226,-1132.56,0.00043561,18]
[342843701,1732176659236,-3552.33,0.00043595,18]
[342843702,1732176659246,-522.61,0.00043595,18]
[342843703,1732176659256,-955.93,0.00043595,18]
[342843704,1732176659267,-500.0,0.00043595,18]
[342843705,1732176659278,-1800.0,0.000436,15]
[342843706,1732176659288,-7838.88061455,0.00043674,15]
[342843707,1732176659298,-500.0,0.00043695,18]
[342843708,1732176659308,-1108.59,0.00043695,18]
[342843709,1732176659318,-500.0,0.00043695,18]
[342843710,1732176659327,-18688.3,0.00043695,18]
[342843711,1732176659337,-500.0,0.00043695,18]
[342843712,1732176659346,-500.0,0.00043695,18]
[342843713,1732176659356,-1224.82,0.00043695,18]
[342843714,1732176659365,-632.82,0.00043695,18]
[342843715,1732176659375,-629.22,0.00043695,18]
[342843716,1732176659387,-500.0,0.00043695,18]
[342843717,1732176659396,-695.9,0.00043695,18]
[342843718,1732176659407,-500.0,0.00043695,18]
[342843719,1732176659417,-500.0,0.00043695,18]
[342843720,1732176659428,-1312.76,0.00043695,18]
[342843721,1732176659438,-500.0,0.00043695,18]
[342843722,1732176659448,-500.0,0.00043695,18]
[342843723,1732176659458,-500.0,0.00043695,18]
[342843724,1732176659467,-750.07,0.00043695,18]
[342843725,1732176659476,-805.26,0.00043695,18]
[342843726,1732176659486,-1363.54,0.00043695,18]
[342843727,1732176659495,-500.0,0.00043695,18]
[342843728,1732176659505,-500.0,0.00043695,18]
[342843729,1732176659514,-500.0,0.00043695,18]
[342843730,1732176659524,-467.7,0.00043695,18]
[342843731,1732176659534,-3231.56,0.00043695,18]
[342843732,1732176659544,-367.74,0.00043695,7]
[342843733,1732176659554,-500.0,0.00043695,18]
[342843734,1732176659563,-5497.61,0.00043695,18]
[342843735,1732176659572,-500.0,0.00043695,18]
[342843736,1732176659581,-500.0,0.00043695,18]
[342843737,1732176659591,-500.0,0.00043695,18]
[342843738,1732176659600,-500.0,0.00043695,18]
[342843739,1732176659609,-500.0,0.00043695,18]
[342843740,1732176659618,-1126.77,0.00043695,18]
[342843741,1732176659627,-1119.85,0.00043695,18]
[342843742,1732176659637,-500.0,0.00043695,18]
[342843743,1732176659647,-500.0,0.00043695,18]
[342843744,1732176659658,-658.75,0.00043695,18]
[342843745,1732176659668,-1769.73,0.00043695,18]
[342843746,1732176659678,-1093.44,0.00043695,18]
[342843747,1732176659688,-6255.25,0.00043695,18]
[342843748,1732176659698,-517.07304624,0.00043695,18]
[342843749,1732176659708,-11166.38,0.00043695,18]
[342843750,1732176659717,-500.0,0.00043695,18]
[342843751,1732176659726,-433.66244061,0.00043695,18]
[342843752,1732176659736,-2021.05,0.00043695,18]
[342843753,1732176659746,-500.0,0.00043695,18]
[342843754,1732176659755,-1734.43,0.00043695,18]
[342843755,1732176659765,-48265.3,0.00043695,18]
[342843756,1732176659775,-690.66,0.00043695,18]
[342843757,1732176659784,-522.50514939,0.00043695,18]
[342843758,1732176659794,-719.15,0.00043695,18]
[342843759,1732176659804,-1921.16,0.00043695,18]
[342843760,1732176659814,-2229.18,0.00043695,18]
[342843761,1732176659824,-991.75,0.00043695,18]
[342843762,1732176659833,-850.88,0.00043695,18]
[342843763,1732176659843,-1501.26,0.00043695,18]
[342843764,1732176659852,-500.0,0.00043695,18]
[342843765,1732176659862,-500.0,0.00043695,18]
[342843766,1732176659872,-500.0,0.00043695,18]
[342843767,1732176659882,-779.44,0.00043695,18]
[342843768,1732176659891,-2234.01,0.00043695,18]
[342843769,1732176659902,-664.4,0.00043695,18]
[342843770,1732176659911,-582.82,0.00043695,18]
[342843771,1732176659920,-500.0,0.00043695,18]
[342843772,1732176659929,-500.0,0.00043695,18]
[342843773,1732176659939,-617.61358906,0.00043695,18]
[342843774,1732176659953,-1118.68,0.00043695,18]
[342843775,1732176659964,-1447.77,0.00043695,18]
[342843776,1732176659973,-1255.38,0.00043695,18]
[342843777,1732176659983,-1672.39,0.00043695,18]
[342843778,1732176659993,-35263.6,0.00043695,18]
[342843779,1732176660003,-500.0,0.00043695,18]
[342843780,1732176660012,-500.0,0.00043695,18]
[342843781,1732176660021,-500.0,0.00043695,18]
[342843782,1732176660033,-2137.58,0.00043695,18]
[342843783,1732176660044,-500.0,0.00043695,18]
[342843784,1732176660053,-3282.65,0.00043695,18]
[342843785,1732176660063,-2009.54,0.00043695,18]
[342843786,1732176660073,-580.94,0.00043695,18]
[342843787,1732176660083,-216.18020923,0.00043695,18]
[342843788,1732176660094,-5001.93,0.00043695,18]
[342843789,1732176660104,-3385.18,0.00043695,18]
[342843790,1732176660115,-644.29,0.00043695,18]
[342843791,1732176660125,-500.0,0.00043695,18]
[342843792,1732176660135,-1921.19,0.00043695,18]
[342843793,1732176660145,-500.0,0.00043695,18]
[342843794,1732176660155,-500.0,0.00043695,18]
[342843795,1732176660165,-1633.91,0.00043695,18]
[342843796,1732176660175,-1910.08,0.00043695,18]
[342843797,1732176660185,-500.0,0.00043695,18]
[342843798,1732176660194,-584.61,0.00043695,18]
[342843799,1732176660204,-953.5,0.00043695,18]
[342843800,1732176660214,-629.89,0.00043695,18]
[342843801,1732176660224,-1711.06,0.00043695,18]
[342843802,1732176660233,-500.0,0.00043695,18]
[342843803,1732176660244,-523.64,0.00043695,18]
[342843804,1732176660253,-500.0,0.00043695,18]
[342843805,1732176660264,-4029.65,0.00043695,18]
[342843806,1732176660275,-500.0,0.00043695,18]
[342843807,1732176660286,-1511.64,0.00043695,18]
[342843808,1732176660298,-479.1576214,0.00043695,18]
[342843809,1732176660307,-699.43,0.00043695,18]
[342843810,1732176660317,-2294.51,0.00043695,18]
[342843811,1732176660327,-2457.99,0.00043695,18]
[342843812,1732176660337,-500.0,0.00043695,18]
[342843813,1732176660347,-500.0,0.00043695,18]
[342843814,1732176660357,-1502.09,0.00043695,18]
[342843815,1732176660366,-1432.32,0.00043695,18]
[342843816,1732176660376,-2000.0,0.00043695,30]
[342843817,1732176660387,-4187.73,0.00043695,18]
[342843818,1732176660396,-1479.36,0.00043695,18]
[342843819,1732176660409,-695.26,0.00043695,18]
[342843820,1732176660419,-500.0,0.00043695,18]
[342843821,1732176660429,-1474.33,0.00043695,18]
[342843822,1732176660440,-500.0,0.00043695,18]
[342843823,1732176660450,-12132.15,0.00043695,18]
[342843824,1732176660460,-1285.5,0.00043695,18]
[342843825,1732176660471,-500.0,0.00043695,18]
[342843826,1732176660480,-934.1,0.00043695,18]
[342843827,1732176660490,-500.0,0.00043695,18]
[342843828,1732176660500,-6335.85,0.00043695,18]
[342843829,1732176660509,-516.65,0.00043695,18]
[342843830,1732176660518,-500.0,0.00043695,18]
[342843831,1732176660528,-1536.85,0.00043695,18]
[342843832,1732176660537,-2007.82,0.00043695,18]
[342843833,1732176660547,-5422.34,0.00043695,18]
[342843834,1732176660556,-500.0,0.00043695,18]
[342843835,1732176660566,-1335.19,0.00043695,7]
[342843836,1732176660575,-500.0,0.00043695,18]
[342843837,1732176660585,-598.95,0.00043695,18]
[342843838,1732176660595,-583.48935716,0.00043695,18]
[342843839,1732176660604,-852.04,0.00043695,18]
[342843840,1732176660613,-500.0,0.00043695,18]
[342843841,1732176660623,-500.0,0.00043695,18]
[342843842,1732176660633,-1031.03,0.00043695,18]
[342843843,1732176660643,-1690.4,0.00043695,18]
[342843844,1732176660652,-500.0,0.00043695,18]
[342843845,1732176660662,-500.0,0.00043695,18]
[342843846,1732176660672,-535.44,0.00043695,18]
[342843847,1732176660682,-1384.02,0.00043695,18]
[342843848,1732176660691,-2300.55,0.00043695,18]
[342843849,1732176660701,-500.0,0.00043695,18]
[342843850,1732176660710,-500.0,0.00043695,18]
[342843851,1732176660720,-576.14,0.00043695,18]
[342843852,1732176660729,-500.0,0.00043695,18]
[342843853,1732176660738,-1119.42,0.00043695,18]
[342843854,1732176660747,-501.02749193,0.00043695,18]
[342843855,1732176660757,-500.0,0.00043695,18]
[342843856,1732176660767,-500.0,0.00043695,18]
[342843857,1732176660778,-2204.21,0.00043695,18]
[342843858,1732176660790,-5138.12,0.00043695,18]
[342843859,1732176660799,-888.36,0.00043695,18]
[342843860,1732176660809,-5037.89,0.00043695,18]
[342843861,1732176660818,-1925.82,0.00043695,18]
[342843862,1732176660828,-4067.65,0.00043695,18]
[342843863,1732176660977,-515.76,0.00043695,18]
[342843864,1732176660987,-573.25,0.00043695,18]
[342843865,1732176660999,-500.0,0.00043695,18]
[342843866,1732176661009,-1251.3,0.00043695,18]
[342843867,1732176661018,-500.0,0.00043695,18]
[342843868,1732176661030,-500.0,0.00043695,18]
[342843869,1732176661040,-68231.94,0.00043695,5]
[342843870,1732176661049,-500.0,0.00043695,18]
[342843871,1732176661060,-3764.75,0.00043695,18]
[342843872,1732176661070,-6281.23,0.00043695,18]
[342843873,1732176661079,-500.0,0.00043695,18]
[342843874,1732176661089,-500.0,0.00043695,18]
[342843875,1732176661098,-4211.02,0.00043695,18]
[342843876,1732176661108,-2390.25,0.00043695,18]
[342843877,1732176661118,-500.0,0.00043695,18]
[342843878,1732176661128,-910.83,0.00043695,18]
[342843879,1732176661137,-1947.17,0.00043695,18]
[342843880,1732176661147,-500.0,0.00043695,18]
[342843881,1732176661157,-837.78,0.00043695,18]
[342843882,1732176661167,-3097.2,0.00043695,18]
[342843883,1732176661177,-500.0,0.00043695,18]
[342843884,1732176661187,-992.19,0.00043695,18]
[342843885,1732176661197,-2347.32,0.00043695,18]
[342843886,1732176661207,-5285.09,0.00043695,18]
[342843887,1732176661217,-1270.69,0.00043695,18]
[342843888,1732176661227,-8572.18,0.00043695,18]
[342843889,1732176661237,-1281.06,0.00043695,18]
[342843890,1732176661246,-2867.97,0.00043695,18]
[342843891,1732176661256,-500.0,0.00043695,18]
[342843892,1732176661266,-500.0,0.00043695,18]
[342843893,1732176661277,-6875.45,0.00043695,18]
[342843894,1732176661287,-500.0,0.00043695,18]
[342843895,1732176661297,-946.26,0.00043695,18]
[342843896,1732176661307,-8426.06,0.00043695,18]
[342843897,1732176661316,-500.0,0.00043695,18]
[342843898,1732176661326,-1808.16,0.00043695,18]
[342843899,1732176661336,-1355.65,0.00043695,18]
[342843900,1732176661345,-1390.31,0.00043695,18]
[342843901,1732176661355,-500.0,0.00043695,18]
[342843902,1732176661366,-500.0,0.00043695,18]
[342843903,1732176661376,-2713.67,0.00043695,18]
[342843904,1732176661385,-2935.7,0.00043695,18]
[342843905,1732176661395,-813.64,0.00043695,18]
[342843906,1732176661404,-8052.04,0.00043695,18]
[342843907,1732176661414,-500.0,0.00043695,18]
[342843908,1732176661423,-500.0,0.00043695,18]
[342843909,1732176661433,-3654.89,0.00043695,18]
[342843910,1732176661442,-500.0,0.00043695,18]
[342843911,1732176661451,-2525.72,0.00043695,18]
[342843912,1732176661461,-827.39,0.00043695,18]
[342843913,1732176661471,-500.0,0.00043695,18]
[342843914,1732176661481,-843.67,0.00043695,18]
[342843915,1732176661491,-1808.5,0.00043695,18]
[342843916,1732176661501,-500.0,0.00043695,18]
[342843917,1732176661510,-1198.35,0.00043695,18]
[342843918,1732176661520,-703.76,0.00043695,18]
[342843919,1732176661533,-1501.49,0.00043695,18]
[342843920,1732176661543,-707.25,0.00043695,18]
[342843921,1732176661553,-500.0,0.00043695,18]
[342843922,1732176661563,-2959.61,0.00043695,18]
[342843923,1732176661574,-500.0,0.00043695,18]
[342843924,1732176661583,-1434.92,0.00043695,18]
[342843925,1732176661593,-1082.04,0.00043695,18]
[342843926,1732176661602,-1401.49,0.00043695,18]
[342843927,1732176661611,-500.0,0.00043695,18]
[342843928,1732176661626,-500.0,0.00043695,18]
[342843929,1732176661636,-1228.15,0.00043695,18]
[342843930,1732176661646,-15097.5,0.00043695,18]
[342843931,1732176661655,-3333.79,0.00043695,18]
[342843932,1732176661665,-500.0,0.00043695,18]
[342843933,1732176661675,-5460.77,0.00043698,120]
[342843934,1732176661684,-6770.18897084,0.000437,120]
[342843935,1732176661694,-2400.0,0.000437,15]
[342843936,1732176661705,-437.0315,0.00043716,2]
[342843937,1732176661714,-218.51575,0.00043716,2]
[342843938,1732176661723,-500.0,0.00043795,18]
[342843939,1732176661732,-500.0,0.00043795,18]
[342843940,1732176661742,-500.0,0.00043795,18]
[342843941,1732176661751,-500.0,0.00043795,18]
[342843942,1732176661761,-2535.35,0.00043795,18]
[342843943,1732176661770,-2701.22,0.00043795,18]
[342843944,1732176661781,-738.61,0.00043795,18]
[342843945,1732176661791,-666.63,0.00043795,18]
[342843946,1732176661800,-793.63,0.00043795,18]
[342843947,1732176661810,-1051.29,0.00043795,18]
[342843948,1732176661819,-2633.56,0.00043795,18]
[342843949,1732176661829,-500.0,0.00043795,18]
[342843950,1732176661839,-1691.64,0.00043795,18]
[342843951,1732176661849,-1991.21,0.00043795,18]
[342843952,1732176661858,-500.0,0.00043795,18]
[342843953,1732176661868,-1801.46,0.00043795,18]
[342843954,1732176661877,-553.23,0.00043795,18]
[342843955,1732176661886,-930.87,0.00043795,18]
[342843956,1732176661896,-500.0,0.00043795,18]
[342843957,1732176661905,-1614.18,0.00043795,18]
[342843958,1732176661916,-1180.2,0.00043795,18]
[342843959,1732176661926,-771.69,0.00043795,18]
[342843960,1732176661936,-1368.87,0.00043795,18]
[342843961,1732176661946,-559.19,0.00043795,18]
[342843962,1732176661959,-500.0,0.00043795,18]
[342843963,1732176661969,-1693.04,0.00043795,18]
[342843964,1732176661979,-500.0,0.00043795,18]
[342843965,1732176661990,-501.37,0.00043795,18]
[342843966,1732176662000,-786.7,0.00043795,18]
[342843967,1732176662010,-1234.03,0.00043795,18]
[342843968,1732176662020,-742.52,0.00043795,18]
[342843969,1732176662031,-1230.89,0.00043795,18]
[342843970,1732176662040,-810.59,0.00043795,18]
[342843971,1732176662050,-2134.16,0.00043795,18]
[342843972,1732176662060,-970.99,0.00043795,18]
[342843973,1732176662070,-500.0,0.00043795,18]
[342843974,1732176662080,-500.0,0.00043795,18]
[342843975,1732176662090,-3846.69,0.00043795,18]
[342843976,1732176662100,-500.0,0.00043795,18]
[342843977,1732176662111,-1386.33,0.00043795,18]
[342843978,1732176662121,-2323.29,0.00043795,18]
[342843979,1732176662131,-500.0,0.00043795,18]
[342843980,1732176662140,-500.0,0.00043795,18]
[342843981,1732176662150,-500.0,0.00043795,18]
[342843982,1732176662159,-3508.91,0.00043795,18]
[342843983,1732176662169,-1372.58,0.00043795,18]
[342843984,1732176662178,-866.98,0.00043795,18]
[342843985,1732176662187,-500.0,0.00043795,18]
[342843986,1732176662197,-1806.44,0.00043795,18]
[342843987,1732176662206,-500.0,0.00043795,18]
[342843988,1732176662216,-500.0,0.00043795,18]
[342843989,1732176662226,-500.0,0.00043795,18]
[342843990,1732176662235,-531.75,0.00043795,18]
[342843991,1732176662246,-743.43,0.00043795,18]
[342843992,1732176662256,-1917.33,0.00043795,18]
[342843993,1732176662265,-1280.87,0.00043795,18]
[342843994,1732176662275,-856.34,0.00043795,18]
[342843995,1732176662286,-2512.67,0.00043795,18]
[342843996,1732176662295,-500.0,0.00043795,18]
[342843997,1732176662306,-500.0,0.00043795,18]
[342843998,1732176662315,-4218.09,0.00043795,18]
[342843999,1732176662325,-3316.6,0.00043795,18]
[342844000,1732176662335,-500.0,0.00043795,18]
[342844001,1732176662345,-518.8,0.00043795,18]
[342844002,1732176662355,-1068.4,0.00043795,18]
[342844003,1732176662365,-334.95318323,0.00043795,18]
[342844004,1732176662374,-1185.85,0.00043795,18]
[342844005,1732176662384,-1666.62,0.00043795,18]
[342844006,1732176662394,-1189.25,0.00043795,18]
[342844007,1732176662404,-500.0,0.00043795,18]
[342844008,1732176662414,-500.0,0.00043795,18]
[342844009,1732176662423,-500.0,0.00043795,18]
[342844010,1732176662434,-1514.38,0.00043795,18]
[342844011,1732176662444,-1413.9,0.00043795,18]
[342844012,1732176662453,-500.0,0.00043795,18]
[342844013,1732176662463,-835.83,0.00043795,18]
[342844014,1732176662472,-500.0,0.00043795,18]
[342844015,1732176662481,-1130.33,0.00043795,18]
[342844016,1732176662491,-736.2,0.00043795,18]
[342844017,1732176662500,-881.69,0.00043795,18]
[342844018,1732176662510,-2905.88,0.00043795,18]
[342844019,1732176662519,-553.96,0.00043795,18]
[342844020,1732176662531,-500.0,0.00043795,18]
[342844021,1732176662541,-2388.19,0.00043795,18]
[342844022,1732176662551,-1185.08,0.00043795,18]
[342844023,1732176662561,-500.0,0.00043795,18]
[342844024,1732176662570,-1227.28,0.00043795,18]
[342844025,1732176662581,-500.0,0.00043795,18]
[342844026,1732176662591,-500.0,0.00043795,18]
[342844027,1732176662600,-500.0,0.00043795,18]
[342844028,1732176662611,-3322.41,0.00043795,18]
[342844029,1732176662620,-1058.97,0.00043795,18]
[342844030,1732176662630,-2688.998,0.000438,110]
[342844031,1732176662640,-15735.11738681,0.000438,60]